Cogmind - Beta 10.2 @@@ ROGUE MODE // 2020.12.20 @ 18:11:26 Player: deMangler Result: Destroyed by H-55 Commando with Gauss Rifle Performance ------------- Evolutions (2) 1000 Regions Visited (4) 800 Robots Destroyed (35) 175 Value Destroyed (1178) 1178 Prototype IDs (0) 0 Alien Tech Used (0) 0 Bonus (0) 0 TOTAL SCORE: 3153 Bonus ------- None Cogmind --------- Core Integrity 0/550 Matter 300/300 Energy 185/185 System Corruption 7% Temperature Cool (0) Movement Walking (150) Ox1 Location -8/Materials Parts ------- > --- POWER (2) -------- Light Ion Engine Light Nuclear Core > --- PROPULSION (2) --- Improved Aluminum Leg Improved Aluminum Leg > --- UTILITY (4) ------ Heavy Armor Plating > --- WEAPON (3) ------- Ion Cannon Heavy Flail > --- INVENTORY (4) ---- Aluminum Leg Wheel Light Armor Plating Heavy Assault Rifle Peak State ------------ > --- POWER ------------ Light Ion Engine Light Nuclear Core > --- PROPULSION ------- Advanced Treads Advanced Treads > --- UTILITY ---------- Small Storage Unit Light Armor Plating Heavy Armor Plating > --- WEAPON ----------- EM Pulse Cannon Ion Cannon Heavy Flail > --- INVENTORY -------- Aluminum Leg Wheel [Rating: 27] Favorites ----------- Power Light Ion Engine Engine Light Ion Engine Power Core Light Nuclear Core Propulsion Wheel Treads Advanced Treads Leg Aluminum Leg Wheel Wheel Utility Light Armor Plating Storage Small Storage Unit Protection Light Armor Plating Weapon Assault Rifle Energy Gun Pulse Rifle Energy Cannon Ion Cannon Ballistic Gun Assault Rifle Impact Weapon Heavy Flail Build | -11 -10 -10 -9 -8 ------- Run | Scr Mat Min Mat Mat Slots Evolved 4 | . . . 2 2 Power 1 | . . . . 1 Propulsion . | . . . . . Utility 2 | . . . 1 1 Weapon 1 | . . . 1 . Parts Attached 60 | 6 2 . 4 48 Power 12 | 1 . . . 11 Engine 7 | 1 . . . 6 Core 5 | . . . . 5 Reactor . | . . . . . Propulsion 18 | 2 1 . . 15 Treads 2 | . . . . 2 Leg 6 | . . . . 6 Wheel 10 | 2 1 . . 7 Hover . | . . . . . Flight . | . . . . . Utility 11 | 1 1 . 1 8 Device . | . . . . . Storage 1 | 1 . . . . Processor . | . . . . . Hackware . | . . . . . Protection 10 | . 1 . 1 8 Artifact . | . . . . . Weapon 19 | 2 . . 3 14 Energy Gun 5 | . . . . 5 Energy Cannon 4 | . . . . 4 Ballistic Gun 9 | 2 . . 3 4 Ballistic Cannon . | . . . . . Launcher . | . . . . . Special Weapon . | . . . . . Impact Weapon 1 | . . . . 1 Slashing Weapon . | . . . . . Piercing Weapon . | . . . . . Special Melee Weapon . | . . . . . Unidentified Prototypes . | . . . . . Parts Lost 28 | . . . . 28 Power 3 | . . . . 3 Propulsion 5 | . . . . 5 Utility 7 | . . . . 7 Weapon 13 | . . . . 13 Highest Loss Streak 7 | . . . . 7 Average Slot Usage (%) 83 | . 88 100 95 80 Engine 9 | . 14 14 11 9 Core 5 | . . . . 7 Treads 2 | . . . . 3 Leg 4 | . . . . 5 Wheel 11 | . 28 28 22 7 Storage 8 | . 14 14 11 7 Protection 17 | . 3 14 19 18 Energy Gun 1 | . . . . 2 Energy Cannon 4 | . . . . 5 Ballistic Gun 14 | . 28 28 31 10 Impact Weapon 2 | . . . . 3 Naked Turns . | . . . . . Heaviest Build 45 | 13 16 16 24 45 Greatest Support 44 | 20 20 20 20 44 Greatest Overweight (x) 4 | 1 . . 1 4 Average Overweight (x) . | . . . . 1 Largest Inventory Capacity 6 | 6 6 6 6 6 Average Capacity 5 | 4 6 6 6 5 Most Carried 6 | 6 6 6 6 6 Average Carried 4 | 3 5 5 5 3 Final Capacity 6 | 6 6 6 6 4 Final Carried 6 | 6 6 6 6 4 Class Distribution -------------------- 41% | Mutant 25% | Scavenger-Mutant 19% | Scavenger-Tank 13% | Tank Dominant Class ---------------- Mutant | -10/Materials Mutant | -10/Mines Tank | -9/Materials Scavenger-Mutant | -8/Materials Resources | -11 -10 -10 -9 -8 ----------- Run | Scr Mat Min Mat Mat Matter Collected 1064 | 229 65 . 71 699 Remotely . | . . . . . Salvage Created 1375 | . 49 . 64 1262 Parts 83 | . 6 . 7 70 Haulers Intercepted . | . . . . . Recyclers Shooed . | . . . . . Parts Field Recycled . | . . . . . Retrieved Matter . | . . . . . Parts Self-Destructed . | . . . . . Prevented . | . . . . . Kills | -11 -10 -10 -9 -8 ------- Run | Scr Mat Min Mat Mat Combat Hostiles Destroyed 29 | . 3 . 4 22 Melee 1 | . . . . 1 Guns 18 | . 3 . 4 11 Cannons 5 | . . . . 5 AOE 2 | . . . . 2 Classes Destroyed 10 | . 1 . . 9 Worker 2 | . . . . 2 Builder 1 | . . . . 1 Tunneler 1 | . . . . 1 Recycler 2 | . . . . 2 Swarmer 7 | . 3 . 4 . Grunt 9 | . . . . 9 Brawler 2 | . . . . 2 Duelist 1 | . . . . 1 Sentry 8 | . . . . 8 Hunter 2 | . . . . 2 Best Kill Streak 4 | . 3 . 4 4 Combat Bots Only 4 | . 3 . 4 4 Max Kills in Single Turn 2 | . 2 . 2 2 Gunslinging 1 | . 1 . 1 . Exploded 1 | . . . . 1 Melee 1 | . . . . 1 Uniques/NPCs Destroyed . | . . . . . Combat | -11 -10 -10 -9 -8 -------- Run | Scr Mat Min Mat Mat Damage Taken 3267 | . 99 . 65 3103 Core 582 | . 16 . 14 552 Absorbed by Shields . | . . . . . Core Remaining (%) 96 | 100 . 93 96 . Volleys Fired 81 | . 4 . 3 74 Largest 3 | . 2 . 3 3 Hottest 182 | . 40 . 60 182 Shots Fired 175 | . 8 . 9 158 Gun 148 | . 8 . 9 131 Cannon 27 | . . . . 27 Launcher . | . . . . . Special . | . . . . . Kinetic 122 | . 8 . 9 105 Thermal 40 | . . . . 40 Explosive . | . . . . . Electromagnetic 13 | . . . . 13 Robot Hit Streak 7 | . 3 . 4 7 Robot Miss Streak 4 | . 2 . 2 4 Penetration Max 1 | . . . . 1 Secondary Targets 3 | . 1 . 2 . Max Gunslinging Chain 1 | . 1 . 1 . Shots Hit Robots 116 | . 4 . 5 107 Core Hits 57 | . 3 . 4 50 Critical Hits . | . . . . . Critical Kills . | . . . . . Critical Parts Destroyed . | . . . . . Melee Attacks 19 | . . . . 19 Impact 19 | . . . . 19 Slashing . | . . . . . Piercing . | . . . . . Sneak Attacks . | . . . . . Combat Hostiles . | . . . . . Follow-up Attacks . | . . . . . Damage Inflicted 2348 | . 53 . 53 2242 Guns 1100 | . 53 . 53 994 Cannons 449 | . . . . 449 Explosions 395 | . . . . 395 Melee 389 | . . . . 389 Ramming 15 | . . . . 15 Kinetic 880 | . 53 . 53 774 Thermal 538 | . . . . 538 Explosive 279 | . . . . 279 Electromagnetic 247 | . . . . 247 Impact 389 | . . . . 389 Slashing . | . . . . . Piercing . | . . . . . Highest Corruption 7 | . . . . 7 Average Corruption 6 | . . . . 6 Corruption Purged . | . . . . . Effects 4 | . . . . 4 Heat Flow Errors 1 | . . . . 1 Energy Discharges 1 | . . . . 1 Data Loss (minor) 2 | . . . . 2 Overload Shots . | . . . . . Overflow Damage 68 | . . . . 68 Projectiles 13 | . . . . 13 Explosions 29 | . . . . 29 Melee 26 | . . . . 26 Knockbacks 3 | . . . . 3 Impact 3 | . . . . 3 Kinetic . | . . . . . Secondary . | . . . . . Self-Inflicted Damage 101 | . . . . 101 Shots 1 | . . . . 1 Rammed 5 | . . . . 5 Targets Rammed 6 | . . . . 6 Kicked 1 | . . . . 1 Crushed . | . . . . . Highest Temperature 694 | . . . 27 694 Average Temperature 174 | . . . 14 177 Received Heat Transfer 546 | . . . 15 531 Effects 26 | . . . . 26 Shutdowns 7 | . . . . 7 Energy Bleed 2 | . . . . 2 Interference 2 | . . . . 2 Matter Decay 3 | . . . . 3 Short Circuit 5 | . . . . 5 Damage (minor) 3 | . . . . 3 Damage (major) 2 | . . . . 2 Damage (core) 2 | . . . . 2 Siege Activations . | . . . . . Robots Corrupted 2 | . . . . 2 Combat Hostiles 2 | . . . . 2 Parts Fried 1 | . . . . 1 Impact Corruptions 2 | . . . . 2 Robots Melted . | . . . . . Combat Hostiles . | . . . . . Parts Melted 1 | . . . . 1 Heat Transferred 964 | . . . . 964 Parts Sabotaged . | . . . . . Parts Stolen . | . . . . . Parts Stripped . | . . . . . Power Chain Reactions 2 | . . . . 2 Missiles Intercepted . | . . . . . Alert | -11 -10 -10 -9 -8 ------- Run | Scr Mat Min Mat Mat Peak Influence 397 | . 85 33 117 397 Initial 49 | . . 33 12 49 Average 162 | . 43 33 79 199 Maximum Alert Level 1 | . . . . 1 Low Security (%) 57 | 100 100 100 100 44 Level 1 42 | . . . . 55 Level 2 . | . . . . . Level 3 . | . . . . . Level 4 . | . . . . . Level 5 . | . . . . . High Security . | . . . . . Max Security . | . . . . . Squads Dispatched 5 | . . . 1 4 Investigation 1 | . . . . 1 Extermination . | . . . . . Reinforcement 1 | . . . 1 . Assault . | . . . . . Garrison 3 | . . . . 3 Intercept . | . . . . . Construction Impeded . | . . . . . Haulers Reinforced . | . . . . . Stealth | -11 -10 -10 -9 -8 --------- Run | Scr Mat Min Mat Mat Distress Signals 3 | . 1 . . 2 Communications Jammed . | . . . . . Distress Signals . | . . . . . Times Spotted 51 | . 5 . 11 35 Peak Tracking Total 7 | . 4 . 7 6 Tactical Retreats 1 | . . . . 1 Traps | -11 -10 -10 -9 -8 ------- Run | Scr Mat Min Mat Mat Traps Triggered 3 | . 1 . . 2 Indirectly . | . . . . . Trap Hack Attempts . | . . . . . Triggered . | . . . . . Disarmed . | . . . . . Reprogrammed . | . . . . . Reused . | . . . . . Traps Extracted . | . . . . . Installed . | . . . . . Triggered . | . . . . . Machines | -11 -10 -10 -9 -8 ---------- Run | Scr Mat Min Mat Mat Machines Disabled 7 | . . . . 7 Max in Single Turn 2 | . . . . 2 Machines Sabotaged . | . . . . . Garrisons Compromised . | . . . . . Overloaded Fab Kills . | . . . . . Fab Network Shutdowns . | . . . . . Hacking | -11 -10 -10 -9 -8 --------- Run | Scr Mat Min Mat Mat Machines Accessed 5 | . . . 3 2 Terminals 4 | . . . 3 1 Fabricators . | . . . . . Repair Stations 1 | . . . . 1 Recycling Units . | . . . . . Scanalyzers . | . . . . . Garrison Access . | . . . . . Total Hacks 9 | . . . 4 5 Successful 5 | . . . 2 3 Failed 4 | . . . 2 2 Catastrophic 1 | . . . . 1 Database Lockouts . | . . . . . Manual 3 | . . . . 3 Terminals 8 | . . . 4 4 Fabricators . | . . . . . Repair Stations 1 | . . . . 1 Recycling Units . | . . . . . Scanalyzers . | . . . . . Garrison Access . | . . . . . Terminal Hacks 5 | . . . 2 3 Record 4 | . . . 1 3 Alert Level 1 | . . . 1 . Fabricator Hacks . | . . . . . Repair Station Hacks . | . . . . . Recycling Unit Hacks . | . . . . . Scanalyzer . | . . . . . Garrison Access Hacks . | . . . . . Unauthorized Hacks . | . . . . . Terminals . | . . . . . Fabricators . | . . . . . Repair Stations . | . . . . . Recycling Units . | . . . . . Scanalyzers . | . . . . . Garrison Access . | . . . . . Data Cores Recovered . | . . . . . Used . | . . . . . Hacking Detections 3 | . . . 1 2 Full Trace Events . | . . . . . Feedback Events . | . . . . . Feedback Blocked . | . . . . . Robot Schematics Acquired . | . . . . . Robots Built . | . . . . . Matter . | . . . . . Time . | . . . . . Total Robot Build Rating . | . . . . . Part Schematics Acquired . | . . . . . Parts Built . | . . . . . Matter . | . . . . . Time . | . . . . . Total Part Build Rating . | . . . . . Parts Repaired . | . . . . . Time . | . . . . . Parts Recycled . | . . . . . Recycled Matter . | . . . . . Retrieved Matter . | . . . . . Retrieved Components . | . . . . . Parts Scanalyzed . | . . . . . Part Schematics Acquired . | . . . . . Parts Damaged . | . . . . . Bothacking | -11 -10 -10 -9 -8 ------------ Run | Scr Mat Min Mat Mat Used RIF Installer . | . . . . . Robots Hacked . | . . . . . Non-combat . | . . . . . Combat . | . . . . . Robot Hacks Applied . | . . . . . Relay Couplers Released . | . . . . . Robots Rewired . | . . . . . Allies Hacked . | . . . . . Hacks Repelled . | . . . . . Allies | -11 -10 -10 -9 -8 -------- Run | Scr Mat Min Mat Mat Total Allies . | . . . . . Largest Group . | . . . . . Highest-Rated Group . | . . . . . Highest-Rated Ally . | . . . . . Total Orders . | . . . . . Ally Attacks . | . . . . . Total Damage . | . . . . . Kills . | . . . . . Allies Corrupted . | . . . . . Allies Melted . | . . . . . Intel | -11 -10 -10 -9 -8 ------- Run | Scr Mat Min Mat Mat Robot Analysis Total . | . . . . . Derelict Logs Recovered . | . . . . . Drone Launches . | . . . . . Drone Recoveries . | . . . . . Exploration | -11 -10 -10 -9 -8 ------------- Run | Scr Mat Min Mat Mat Turns Passed 1576 | 65 84 99 133 1195 Spaces Moved 1127 | 63 83 122 132 727 Core 5 | 5 . . . . Treads 94 | . . . . 94 Legs 179 | . . . . 179 Wheels 849 | 58 83 122 132 454 Hover . | . . . . . Flight . | . . . . . Fastest Speed 50 | 50 80 80 80 90 Average Speed 104 | 79 80 80 88 116 Slowest Speed 210 | 100 80 80 90 210 Overloaded Moves . | . . . . . Propulsion Burnouts . | . . . . . Robots Hopped . | . . . . . Cave-ins Triggered . | . . . . . Exploration Rate (%) 27 | 3 25 43 17 48 Regions Visited 4 Branch Regions 1 Pre-discovered Areas . | . . . . . Known Exits Taken . | . . . . . Unknown Exits Taken 4 | 1 1 1 1 . Scrap Searched . | . . . . . Spaces Dug . | . . . . . Terrain Destroyed 42 | . . . . 42 Melee . | . . . . . Projectile 2 | . . . . 2 AOE 40 | . . . . 40 Terrain Rammed . | . . . . . Walls Destroyed . | . . . . . Machines Disabled . | . . . . . Actions | -11 -10 -10 -9 -8 --------- Run | Scr Mat Min Mat Mat Total 1333 | 74 92 123 141 903 Wait 3 | . . . 2 1 Move 1123 | 62 82 121 131 727 Hop . | . . . . . Pick Up 13 | 6 2 1 . 4 Fast Attach 35 | 6 2 . 1 26 Attach 16 | . . . 1 15 Detach 12 | . . . . 12 Swap 9 | . . . 2 7 Drop 16 | . 2 1 1 12 Fire 81 | . 4 . 3 74 Melee 19 | . . . . 19 Ram 1 | . . . . 1 Kick 5 | . . . . 5 Crush . | . . . . . Escape Stasis . | . . . . . Rewire . | . . . . . Trap . | . . . . . Miscellaneous . | . . . . . Route ------- -11/Scrapyard -10/Materials -10/Mines -9/Materials -8/Materials History --------- Turn | Location | Event 10 | -11/Scrapyard | Discovered new exit (range 15) 66 | -11/Scrapyard | Entered Materials 132 | -10/Materials | Discovered new exit (range 16) 150 | -10/Materials | Entered Mines 236 | -10/Mines | Discovered new exit (range 5) 249 | -10/Mines | Entered Materials 249 | -9/Materials | Evolved 2 slots: Utility x1, Weapon x1 371 | -9/Materials | Discovered new exit (range 13) 382 | -9/Materials | Entered another Materials area 382 | -8/Materials | Evolved 2 slots: Power x1, Utility x1 767 | -8/Materials | Lost 7 parts (2n1u4w) 950 | -8/Materials | Lost 4 parts (2u2w) 1005 | -8/Materials | Garrison activated, responded to threat 1061 | -8/Materials | Lost 7 parts (2p1n1u3w) 1122 | -8/Materials | Lost 3 parts (1p1n1u) 1154 | -8/Materials | Core integrity fell below 50% 1156 | -8/Materials | Core integrity fell below 20% 1191 | -8/Materials | Lost 3 parts (3w) 1448 | -8/Materials | Lost 3 parts (2u1w) 1577 | -8/Materials | Destroyed by H-55 Commando with Gauss Rifle Last Messages --------------- 01417_ System corrupted by crushing effect (+3). 01429_ B-36 Bruiser destroyed. 01430_ Acquired 3 matter. 01454_ System corrupted: Heat flow error (+262). 01457_ Adv. Treads destroyed. 01461_ L-31 Rogue knocked back. 01464_ Destroyed Melee Analysis Suite. 01464_ L-31 Rogue system corrupted by crushing effect. 01465_ L-31 Rogue system terminally corrupted. 01465_ Core Shielding fried. 01470_ Dropped Adv. Treads. 01471_ System corrupted: Energy discharge (-66). 01471_ Acquired Imp. Aluminum Leg. 01489_ K-01 Serf collects debris. 01525_ Acquired 19 matter. 01526_ Slug penetrates Wall. 01528_ Acquired 1 matter. 01536_ Slug penetrates Wall. 01538_ System corrupted: Component data lost. 01577_ Penetrated by Slug. Map ----- +----------------------------------------------------+ | ??# """ """ #???# #??# ?????????? | | ??# """ """ #??## ##?# ######### ?????????? | | ??# """ """ #??# #?# #?????????????????????? | | ??# #??# #?# #?????????????????????? | | ??# ! #??# #?# #?????????????????????? | | ??# % #??# #?# #?????????????????????? | | ??#! ! #??# ! #?# #?????????????????????? | | #######+######### ##?# #?????????????????????? | | #### #??# #?????????????????????? | | / #??# ^ #?????????????????????? | | #### %#??# #?????????????????????? | | #??# ######## #??# #?????????????????????? | | #??# #??????# #??# #?????????????????????? | | #??# #??????# #??# #?????????????????????? | | ###### #??????# #?## ##????????????????????? | | #??????# #?# ! #????????????????????? | | #??????# #?# #????????????????????? | | #??????# #?# T +????????????????????? | | #####+######????# #?# #????????????????????? | | # !#????# #?# #????????????????????? | | #""""" #????# #?## ##???? #??????????????? | | ! #""""" ###### #??# #????" ???????????????? | | #""""" / #??# #?? ?????????????????? | | #""""" ###### #??# ##+#??????????????????? | | |#""""" #????# #### #######????????????? | | ###?"""" #????# h @ ????????? | | ????"""" #????# ????????? | | ???? #????# ###################??????????? | | ##?#########????# #????????????????????????????? | | #??????????????# #????????????????????????????? | | #??????????????# #????????????????????????????? | | #??????????????# #????????????????????????????? | | #??????????????# #????????????????????????????? | | ##??????????????# #????????????????????????????? | | ????????????????# #????????????????????????????? | | ????????????????#####????????????????????????????? | | ?????????????????????????????????????????????????? | | ?????????????????????????????????????????????????? | | ?????????????????????????????????????????????????? | | ?????????????????????????????????????????????????? | | ?????????????????????????????????????????????????? | | ?????????????????????????????????????????????????? | | ?????????????????????????????????????????????????? | | ?????????????????????????????????????????????????? | | ?????????????????????????????????????????????????? | | | | | | | | | | | +----------------------------------------------------+ Best States ------------- Heat Dissipation 31 Energy Generation 23 Energy Capacity 275 Matter Stores 300 Matter Capacity 300 Sight Range 16 Terrain Scan Density 10 Armor Coverage 750 Evasion (%) 44 Recoil Reduction 2 Item Schematics ----------------- None Robot Schematics ------------------ None Fabricated ------------ Nothing Alien Tech Used ----------------- None Achievements -------------- Please Form A Line Power Corrupts Troublemaker Challenges ------------ None Game ------ Seed PointSmallPit Manual? 0 Play Time 01:07:54 Cumulative 7.3 hours Start 2020.12.19 @ 18:47:13 End 2020.12.20 @ 18:11:26 Sessions 3 Manual Loads 0 Difficulty Rogue Special Mode None Game No. 5 Rogue 5 Adventurer 0 Explorer 0 Win Type - Total 0 Types 0/0/0/0/0/0/0/0/0 Lore% 2 Gallery% 5 Achievement% 5 Wizard Run 0 Options --------- ASCII 1 Keyboard 1 Movement Vi Keybinds 0 Fullscreen 0 Font 16/Terminus Map View 76x50 Tactical HUD 1 Map Filters NONE Filters NONE Steam 1 RUN: 17ffc37e-4daa-498d-ad09-a5d2dcf5fc8d